[Event "Betsys MČR v online bleskovém šachu 2021"]
[Site "Chess.com"]
[Date "2021.04.17"]
[Round "11"]
[White "vozmenmarcel"]
[Black "Michaela1994"]
[Result "1-0"]
[WhiteElo "1874"]
[BlackElo "1646"]
[TimeControl "180+1"]
[EndTime "10:48:21 PDT"]
[Termination "Uživatel vozmenmarcel zvítězil po vzdání soupeře"]

1. e4 {[%clk 0:03:00.9]} 1... e6 {[%clk 0:03:00.1]} 2. g3 {[%clk 0:02:58.4]}
2... d5 {[%clk 0:02:59.8]} 3. e5 {[%clk 0:02:57.9]} 3... c5 {[%clk 0:02:58.8]}
4. Bg2 {[%clk 0:02:57.5]} 4... Nc6 {[%clk 0:02:59.2]} 5. f4 {[%clk 0:02:58]}
5... Be7 {[%clk 0:02:53.8]} 6. Nf3 {[%clk 0:02:57.8]} 6... f6 {[%clk 0:02:51.4]}
7. exf6 {[%clk 0:02:56.5]} 7... Nxf6 {[%clk 0:02:51.2]} 8. d4 {[%clk 0:02:55.6]}
8... O-O {[%clk 0:02:50.2]} 9. O-O {[%clk 0:02:53.1]} 9... Qb6 {[%clk
0:02:48.2]} 10. c3 {[%clk 0:02:51.6]} 10... Ne4 {[%clk 0:02:39.7]} 11. Nbd2
{[%clk 0:02:47.4]} 11... cxd4 {[%clk 0:02:37.8]} 12. cxd4 {[%clk 0:02:37.6]}
12... Nxd4 {[%clk 0:02:30]} 13. Nxe4 {[%clk 0:02:35.2]} 13... Nxf3+ {[%clk
0:02:23.3]} 14. Kh1 {[%clk 0:02:34]} 14... dxe4 {[%clk 0:02:15.1]} 15. Bxf3
{[%clk 0:02:32.2]} 15... exf3 {[%clk 0:02:15]} 16. Qxf3 {[%clk 0:02:31.9]} 16...
Bd7 {[%clk 0:02:09.7]} 17. Be3 {[%clk 0:02:27.6]} 17... Bc6 {[%clk 0:02:09.2]}
18. Bxb6 {[%clk 0:02:25.6]} 18... Bxf3+ {[%clk 0:02:08.1]} 19. Rxf3 {[%clk
0:02:25.7]} 19... axb6 {[%clk 0:02:08.1]} 20. Re3 {[%clk 0:02:25.4]} 20... Kf7
{[%clk 0:02:05]} 21. a3 {[%clk 0:02:23.2]} 21... Rfe8 {[%clk 0:02:03.6]} 22.
Rae1 {[%clk 0:02:21.5]} 22... Bc5 {[%clk 0:02:02.2]} 23. Rd3 {[%clk 0:02:20.8]}
23... Rad8 {[%clk 0:01:58.5]} 24. Red1 {[%clk 0:02:19.9]} 24... Rxd3 {[%clk
0:01:56.3]} 25. Rxd3 {[%clk 0:02:18.9]} 25... Re7 {[%clk 0:01:56.2]} 26. b4
{[%clk 0:02:17.4]} 26... Bf2 {[%clk 0:01:44]} 27. Kg2 {[%clk 0:02:16.9]} 27...
Be1 {[%clk 0:01:43.5]} 28. Kf1 {[%clk 0:02:17]} 28... Bxb4 {[%clk 0:01:33]} 29.
axb4 {[%clk 0:02:15.8]} 29... Rc7 {[%clk 0:01:32.7]} 30. Kg2 {[%clk 0:02:11.6]}
30... Ke7 {[%clk 0:01:32.6]} 31. Kf3 {[%clk 0:02:09.3]} 31... Rc4 {[%clk
0:01:32.4]} 32. Rb3 {[%clk 0:02:08.4]} 32... Kd6 {[%clk 0:01:32.2]} 33. Ke3
{[%clk 0:02:07.3]} 33... e5 {[%clk 0:01:29.3]} 34. f5 {[%clk 0:02:06.3]} 34...
g6 {[%clk 0:01:22.7]} 35. fxg6 {[%clk 0:02:05.2]} 35... hxg6 {[%clk 0:01:22.5]}
36. Kd3 {[%clk 0:02:03]} 36... Rd4+ {[%clk 0:01:20.6]} 37. Ke3 {[%clk
0:02:02.6]} 37... Kd5 {[%clk 0:01:18.6]} 38. h4 {[%clk 0:02:00.9]} 38... Rg4
{[%clk 0:01:15.7]} 39. Kf3 {[%clk 0:01:59.6]} 39... Rd4 {[%clk 0:01:12]} 40. g4
{[%clk 0:01:59.4]} 40... Kc4 {[%clk 0:01:08.6]} 41. Re3 {[%clk 0:01:57.7]} 41...
Kxb4 {[%clk 0:00:42.4]} 42. Rxe5 {[%clk 0:01:56.4]} 42... Kc4 {[%clk 0:00:42.3]}
43. Re4 {[%clk 0:01:54.1]} 43... b5 {[%clk 0:00:40]} 44. h5 {[%clk 0:01:51.7]}
44... gxh5 {[%clk 0:00:35.9]} 45. gxh5 {[%clk 0:01:49.2]} 45... b4 {[%clk
0:00:35.9]} 46. Rxd4+ {[%clk 0:01:47.9]} 46... Kxd4 {[%clk 0:00:32.4]} 47. h6
{[%clk 0:01:48.1]} 1-0

[Event "Betsys MČR v online bleskovém šachu 2021"]
[Site "Chess.com"]
[Date "2021.04.17"]
[Round "11"]
[White "misa2009"]
[Black "patrikvagner"]
[Result "0-1"]
[WhiteElo "1512"]
[BlackElo "1758"]
[TimeControl "180+1"]
[EndTime "10:48:22 PDT"]
[Termination "Uživatel patrikvagner zvítězil po vzdání soupeře"]

1. e4 {[%clk 0:03:00.9]} 1... c6 {[%clk 0:02:59.7]} 2. Nf3 {[%clk 0:03:00.5]}
2... d5 {[%clk 0:02:59.7]} 3. exd5 {[%clk 0:03:00.5]} 3... cxd5 {[%clk
0:02:59.9]} 4. d4 {[%clk 0:03:00.9]} 4... Bg4 {[%clk 0:02:59.8]} 5. Be2 {[%clk
0:03:00.2]} 5... e6 {[%clk 0:02:59.9]} 6. Nc3 {[%clk 0:02:59.9]} 6... Nf6 {[%clk
0:02:59.8]} 7. Bg5 {[%clk 0:02:59.2]} 7... Be7 {[%clk 0:02:59.4]} 8. O-O {[%clk
0:02:57.9]} 8... Nc6 {[%clk 0:02:59.4]} 9. h3 {[%clk 0:02:57.3]} 9... Bh5 {[%clk
0:02:59]} 10. Re1 {[%clk 0:02:53]} 10... O-O {[%clk 0:02:58.5]} 11. a3 {[%clk
0:02:52.4]} 11... Qb6 {[%clk 0:02:57]} 12. b4 {[%clk 0:02:47.4]} 12... Bxf3
{[%clk 0:02:53.8]} 13. Bxf3 {[%clk 0:02:44.7]} 13... Nxd4 {[%clk 0:02:51.7]} 14.
Na4 {[%clk 0:02:39.4]} 14... Nxf3+ {[%clk 0:02:48]} 15. Qxf3 {[%clk 0:02:35.1]}
15... Qb5 {[%clk 0:02:43.7]} 16. Nc3 {[%clk 0:02:32.3]} 16... Qc4 {[%clk
0:02:37.1]} 17. Qd3 {[%clk 0:02:25.1]} 17... Rac8 {[%clk 0:02:30.5]} 18. Na4
{[%clk 0:02:03.2]} 18... Qxc2 {[%clk 0:02:22.6]} 19. Qxc2 {[%clk 0:02:02.2]}
19... Rxc2 {[%clk 0:02:22.1]} 20. Rac1 {[%clk 0:02:02.2]} 20... Rfc8 {[%clk
0:02:20.6]} 21. Kh2 {[%clk 0:01:54.3]} 21... b5 {[%clk 0:02:17.6]} 22. Nc5
{[%clk 0:01:49.1]} 22... Rxc1 {[%clk 0:02:15.6]} 23. Rxc1 {[%clk 0:01:48.6]}
23... Bxc5 {[%clk 0:02:14.9]} 24. Rxc5 {[%clk 0:01:48.5]} 24... Rxc5 {[%clk
0:02:09.9]} 25. bxc5 {[%clk 0:01:48.5]} 25... Ne8 {[%clk 0:02:06.6]} 26. c6
{[%clk 0:01:46.9]} 26... Nd6 {[%clk 0:02:04.7]} 27. c7 {[%clk 0:01:44]} 27...
Nc8 {[%clk 0:02:04.6]} 28. Bd8 {[%clk 0:01:39.8]} 28... Kf8 {[%clk 0:02:02.5]}
29. Kg3 {[%clk 0:01:38.5]} 29... Ke8 {[%clk 0:02:02.5]} 30. Kf3 {[%clk
0:01:38.7]} 30... Kd7 {[%clk 0:02:02.6]} 31. Ke3 {[%clk 0:01:38.2]} 31... Nd6
{[%clk 0:02:00.5]} 32. Kd4 {[%clk 0:01:35.2]} 32... Kc8 {[%clk 0:01:58.8]} 33.
Kc5 {[%clk 0:01:34.1]} 33... Nb7+ {[%clk 0:01:58.3]} 34. Kxb5 {[%clk 0:01:32.2]}
34... Nxd8 {[%clk 0:01:57.4]} 35. cxd8=Q+ {[%clk 0:01:31.7]} 35... Kxd8 {[%clk
0:01:57.5]} 36. Kc6 {[%clk 0:01:31.8]} 36... Kc8 {[%clk 0:01:55.8]} 37. Kc5
{[%clk 0:01:31.4]} 37... Kc7 {[%clk 0:01:55.4]} 38. a4 {[%clk 0:01:30.9]} 38...
a5 {[%clk 0:01:54.3]} 39. f3 {[%clk 0:01:27.9]} 39... f5 {[%clk 0:01:53.6]} 40.
g3 {[%clk 0:01:27.4]} 40... g5 {[%clk 0:01:52.4]} 41. h4 {[%clk 0:01:26.6]}
41... gxh4 {[%clk 0:01:51.6]} 42. gxh4 {[%clk 0:01:26.6]} 42... h6 {[%clk
0:01:49.8]} 43. f4 {[%clk 0:01:24.8]} 43... h5 {[%clk 0:01:48.8]} 44. Kb5 {[%clk
0:01:23.1]} 44... Kd6 {[%clk 0:01:48.2]} 45. Kxa5 {[%clk 0:01:22.5]} 45... d4
{[%clk 0:01:48.4]} 46. Kb6 {[%clk 0:01:22.2]} 46... d3 {[%clk 0:01:48.3]} 47. a5
{[%clk 0:01:22.5]} 47... d2 {[%clk 0:01:48.1]} 48. a6 {[%clk 0:01:22.5]} 48...
d1=Q {[%clk 0:01:47.6]} 49. a7 {[%clk 0:01:22.4]} 49... Qd4+ {[%clk 0:01:46.2]}
50. Kb7 {[%clk 0:01:22.2]} 50... Qb4+ {[%clk 0:01:45]} 51. Ka8 {[%clk
0:01:20.1]} 51... Qa5 {[%clk 0:01:42.1]} 52. Kb7 {[%clk 0:01:19.8]} 52... Qxa7+
{[%clk 0:01:41.4]} 53. Kxa7 {[%clk 0:01:19.3]} 53... Kd5 {[%clk 0:01:41.7]} 54.
Kb6 {[%clk 0:01:19.2]} 54... Ke4 {[%clk 0:01:42]} 55. Kc6 {[%clk 0:01:19.8]}
55... Kxf4 {[%clk 0:01:42.2]} 56. Kd6 {[%clk 0:01:20.5]} 56... e5 {[%clk
0:01:42.4]} 57. Ke6 {[%clk 0:01:20.2]} 57... e4 {[%clk 0:01:42.3]} 58. Kf6
{[%clk 0:01:20.5]} 58... e3 {[%clk 0:01:42.6]} 59. Kg6 {[%clk 0:01:20.9]} 59...
e2 {[%clk 0:01:42.9]} 60. Kxh5 {[%clk 0:01:21.1]} 60... e1=Q {[%clk 0:01:42.5]}
61. Kg6 {[%clk 0:01:20.8]} 61... Qxh4 {[%clk 0:01:41.8]} 0-1

[Event "Betsys MČR v online bleskovém šachu 2021"]
[Site "Chess.com"]
[Date "2021.04.17"]
[Round "11"]
[White "JohnnyDuck64"]
[Black "VeceraP1973"]
[Result "0-1"]
[WhiteElo "2075"]
[BlackElo "1941"]
[TimeControl "180+1"]
[EndTime "10:48:23 PDT"]
[Termination "Uživatel VeceraP1973 zvítězil na čas"]

1. e4 {[%clk 0:03:00.9]} 1... c5 {[%clk 0:02:59.1]} 2. Nf3 {[%clk 0:03:00.3]}
2... Nc6 {[%clk 0:02:58.8]} 3. d4 {[%clk 0:03:00.6]} 3... cxd4 {[%clk
0:02:59.7]} 4. Nxd4 {[%clk 0:03:01.2]} 4... Nf6 {[%clk 0:02:59.1]} 5. Nc3 {[%clk
0:03:00.3]} 5... d6 {[%clk 0:02:59]} 6. Bg5 {[%clk 0:02:54.2]} 6... e6 {[%clk
0:02:58.5]} 7. Qd2 {[%clk 0:02:46.6]} 7... a6 {[%clk 0:02:58.4]} 8. O-O-O {[%clk
0:02:42.9]} 8... Bd7 {[%clk 0:02:58.4]} 9. f3 {[%clk 0:02:37.1]} 9... Be7 {[%clk
0:02:54.9]} 10. g4 {[%clk 0:02:26.4]} 10... Nxd4 {[%clk 0:02:53.9]} 11. Qxd4
{[%clk 0:02:17.1]} 11... Qc7 {[%clk 0:02:52.7]} 12. Kb1 {[%clk 0:02:11.6]} 12...
Rc8 {[%clk 0:02:51.2]} 13. h4 {[%clk 0:01:56.6]} 13... b5 {[%clk 0:02:50.3]} 14.
a3 {[%clk 0:01:52.9]} 14... e5 {[%clk 0:02:44]} 15. Qd2 {[%clk 0:01:47.9]} 15...
Be6 {[%clk 0:02:43.1]} 16. Bxf6 {[%clk 0:01:29.2]} 16... gxf6 {[%clk 0:02:32.9]}
17. Nd5 {[%clk 0:01:22]} 17... Qc5 {[%clk 0:02:25.2]} 18. Be2 {[%clk 0:00:40.5]}
18... h5 {[%clk 0:02:16.6]} 19. gxh5 {[%clk 0:00:37]} 19... Rxh5 {[%clk
0:02:02.7]} 20. f4 {[%clk 0:00:36.9]} 20... Rh8 {[%clk 0:02:02.1]} 21. f5 {[%clk
0:00:32.7]} 21... Bxd5 {[%clk 0:02:01.4]} 22. exd5 {[%clk 0:00:32]} 22... Bf8
{[%clk 0:01:59.4]} 23. h5 {[%clk 0:00:26.7]} 23... Bh6 {[%clk 0:01:59.2]} 24.
Qd3 {[%clk 0:00:26.9]} 24... Ke7 {[%clk 0:01:57]} 25. Qb3 {[%clk 0:00:25.2]}
25... Rhg8 {[%clk 0:01:55]} 26. Bd3 {[%clk 0:00:19.6]} 26... Rg3 {[%clk
0:01:53.2]} 27. Qb4 {[%clk 0:00:18]} 27... Qxb4 {[%clk 0:01:52.1]} 28. axb4
{[%clk 0:00:18.9]} 28... Rcg8 {[%clk 0:01:50.1]} 29. Rdf1 {[%clk 0:00:18.1]}
29... R8g4 {[%clk 0:01:48.8]} 30. Re1 {[%clk 0:00:08.3]} 30... Rxb4 {[%clk
0:01:47.8]} 31. Re2 {[%clk 0:00:05.3]} 31... Rbg4 {[%clk 0:01:46.2]} 32. Rd1
{[%clk 0:00:03.7]} 32... Rg1 {[%clk 0:01:45.1]} 0-1

[Event "Betsys MČR v online bleskovém šachu 2021"]
[Site "Chess.com"]
[Date "2021.04.17"]
[Round "11"]
[White "kubaches123"]
[Black "Svandik49"]
[Result "1-0"]
[WhiteElo "2123"]
[BlackElo "2258"]
[TimeControl "180+1"]
[EndTime "10:48:30 PDT"]
[Termination "Uživatel kubaches123 zvítězil po vzdání soupeře"]

1. d4 {[%clk 0:03:00.9]} 1... Nf6 {[%clk 0:02:59]} 2. c4 {[%clk 0:03:00.7]} 2...
g6 {[%clk 0:02:57.5]} 3. Nc3 {[%clk 0:03:00.7]} 3... d5 {[%clk 0:02:57.5]} 4.
cxd5 {[%clk 0:03:01.6]} 4... Nxd5 {[%clk 0:02:57.3]} 5. e4 {[%clk 0:03:02.3]}
5... Nxc3 {[%clk 0:02:57.8]} 6. bxc3 {[%clk 0:03:03.2]} 6... Bg7 {[%clk
0:02:58.5]} 7. Nf3 {[%clk 0:03:03.8]} 7... c5 {[%clk 0:02:59]} 8. Rb1 {[%clk
0:03:04.3]} 8... O-O {[%clk 0:02:56.1]} 9. Be2 {[%clk 0:03:04.5]} 9... Nc6
{[%clk 0:02:56.5]} 10. d5 {[%clk 0:03:00.5]} 10... Ne5 {[%clk 0:02:55.7]} 11.
Nxe5 {[%clk 0:03:00.4]} 11... Bxe5 {[%clk 0:02:55]} 12. Qd2 {[%clk 0:03:01]}
12... e6 {[%clk 0:02:51.4]} 13. f4 {[%clk 0:03:00.4]} 13... Bc7 {[%clk
0:02:51.4]} 14. O-O {[%clk 0:03:00.7]} 14... Ba5 {[%clk 0:02:49.2]} 15. d6
{[%clk 0:02:43.8]} 15... Rb8 {[%clk 0:02:47.6]} 16. e5 {[%clk 0:02:42.1]} 16...
b6 {[%clk 0:02:47.8]} 17. Qe3 {[%clk 0:02:24.7]} 17... Bb7 {[%clk 0:02:44.7]}
18. c4 {[%clk 0:02:24.1]} 18... Qd7 {[%clk 0:02:43]} 19. Bb2 {[%clk 0:01:57.3]}
19... Bc6 {[%clk 0:02:33.9]} 20. Bf3 {[%clk 0:01:17.7]} 20... Ba4 {[%clk
0:02:28.3]} 21. Bd1 {[%clk 0:01:01.2]} 21... a6 {[%clk 0:02:21.7]} 22. Bxa4
{[%clk 0:00:45.3]} 22... Qxa4 {[%clk 0:02:22.6]} 23. f5 {[%clk 0:00:27.5]} 23...
exf5 {[%clk 0:02:12.2]} 24. e6 {[%clk 0:00:24.6]} 24... f6 {[%clk 0:01:57.3]}
25. e7 {[%clk 0:00:22.6]} 25... Rf7 {[%clk 0:01:52.5]} 26. Qe6 {[%clk 0:00:22]}
26... Qe8 {[%clk 0:01:41.7]} 27. Bxf6 {[%clk 0:00:16.8]} 27... Rb7 {[%clk
0:01:35.2]} 28. Rbd1 {[%clk 0:00:15.9]} 28... Rd7 {[%clk 0:01:25]} 29. Bb2
{[%clk 0:00:16]} 29... h6 {[%clk 0:01:19.4]} 30. Qxg6+ {[%clk 0:00:14.4]} 1-0

[Event "Betsys MČR v online bleskovém šachu 2021"]
[Site "Chess.com"]
[Date "2021.04.17"]
[Round "11"]
[White "g4g5g4g5"]
[Black "Nimrod64"]
[Result "1/2-1/2"]
[WhiteElo "2008"]
[BlackElo "2236"]
[TimeControl "180+1"]
[EndTime "10:48:30 PDT"]
[Termination "Remíza opakováním pozice"]

1. e4 {[%clk 0:02:51.2]} 1... d5 {[%clk 0:02:58.3]} 2. exd5 {[%clk 0:02:41.4]}
2... Qxd5 {[%clk 0:02:57.1]} 3. Nc3 {[%clk 0:02:41.5]} 3... Qd6 {[%clk
0:02:56.3]} 4. d4 {[%clk 0:02:38.8]} 4... Nf6 {[%clk 0:02:55.2]} 5. Nf3 {[%clk
0:02:38.9]} 5... c6 {[%clk 0:02:54.8]} 6. g3 {[%clk 0:02:38.5]} 6... Bf5 {[%clk
0:02:53.4]} 7. Bg2 {[%clk 0:02:37.6]} 7... e6 {[%clk 0:02:52.4]} 8. O-O {[%clk
0:02:37.5]} 8... h6 {[%clk 0:02:49.1]} 9. a3 {[%clk 0:02:37]} 9... Qc7 {[%clk
0:02:48.1]} 10. Bf4 {[%clk 0:02:33.8]} 10... Bd6 {[%clk 0:02:46.6]} 11. Bxd6
{[%clk 0:02:30.4]} 11... Qxd6 {[%clk 0:02:45.4]} 12. Qd2 {[%clk 0:02:28.8]}
12... O-O {[%clk 0:02:42.9]} 13. h3 {[%clk 0:02:26.2]} 13... Nbd7 {[%clk
0:02:42]} 14. Rfe1 {[%clk 0:02:24.8]} 14... Rfd8 {[%clk 0:02:38.1]} 15. Rad1
{[%clk 0:02:21]} 15... Nb6 {[%clk 0:02:31.4]} 16. Qe2 {[%clk 0:02:12.2]} 16...
Nbd5 {[%clk 0:02:24.4]} 17. Nxd5 {[%clk 0:02:09.8]} 17... cxd5 {[%clk
0:02:22.5]} 18. c3 {[%clk 0:02:10.1]} 18... Rab8 {[%clk 0:01:57]} 19. Ne5 {[%clk
0:02:09.6]} 19... b5 {[%clk 0:01:53.4]} 20. g4 {[%clk 0:02:08.8]} 20... Bh7
{[%clk 0:01:50.3]} 21. f3 {[%clk 0:01:57.1]} 21... a5 {[%clk 0:01:48.4]} 22. h4
{[%clk 0:01:56.5]} 22... b4 {[%clk 0:01:46.6]} 23. axb4 {[%clk 0:01:56.7]} 23...
axb4 {[%clk 0:01:45.9]} 24. g5 {[%clk 0:01:40.2]} 24... hxg5 {[%clk 0:01:44]}
25. hxg5 {[%clk 0:01:33]} 25... Nd7 {[%clk 0:01:33.4]} 26. g6 {[%clk 0:01:31.4]}
26... Bxg6 {[%clk 0:01:30.8]} 27. Nxg6 {[%clk 0:01:30.4]} 27... fxg6 {[%clk
0:01:30.4]} 28. Qxe6+ {[%clk 0:01:29.1]} 28... Qxe6 {[%clk 0:01:29.4]} 29. Rxe6
{[%clk 0:01:29.3]} 29... bxc3 {[%clk 0:01:20.5]} 30. bxc3 {[%clk 0:01:28.4]}
30... Nf6 {[%clk 0:01:19.6]} 31. f4 {[%clk 0:01:23.6]} 31... Rbc8 {[%clk
0:01:18.4]} 32. Rc1 {[%clk 0:01:21.4]} 32... Rc7 {[%clk 0:01:13.5]} 33. Re5
{[%clk 0:01:20.7]} 33... Kf7 {[%clk 0:01:05.4]} 34. Bh3 {[%clk 0:01:17.4]} 34...
Rd6 {[%clk 0:00:55.8]} 35. Bg2 {[%clk 0:01:07.6]} 35... Rc8 {[%clk 0:00:51.7]}
36. Bf3 {[%clk 0:01:06.5]} 36... Rc7 {[%clk 0:00:51.3]} 37. Kf2 {[%clk
0:01:06.5]} 37... Rc8 {[%clk 0:00:50]} 38. Kg1 {[%clk 0:01:05.7]} 38... Rc7
{[%clk 0:00:49.5]} 39. Kf2 {[%clk 0:01:05.9]} 39... Rc8 {[%clk 0:00:48.9]} 40.
Kg1 {[%clk 0:01:06.1]} 1/2-1/2

[Event "Betsys MČR v online bleskovém šachu 2021"]
[Site "Chess.com"]
[Date "2021.04.17"]
[Round "11"]
[White "tkokosek007"]
[Black "bumurubac"]
[Result "1-0"]
[WhiteElo "1368"]
[BlackElo "1013"]
[TimeControl "180+1"]
[EndTime "10:48:31 PDT"]
[Termination "Uživatel tkokosek007 zvítězil matem"]

1. b3 {[%clk 0:03:00.9]} 1... e5 {[%clk 0:03:00.9]} 2. Bb2 {[%clk 0:03:00.8]}
2... Nc6 {[%clk 0:02:58.3]} 3. e3 {[%clk 0:03:00.9]} 3... Nf6 {[%clk 0:02:57.3]}
4. Bb5 {[%clk 0:02:56.8]} 4... Ne4 {[%clk 0:02:50.4]} 5. d3 {[%clk 0:02:48.9]}
5... a6 {[%clk 0:02:46.1]} 6. Bxc6 {[%clk 0:02:46.9]} 6... bxc6 {[%clk
0:02:43.3]} 7. dxe4 {[%clk 0:02:46.8]} 7... Qh4 {[%clk 0:02:42.3]} 8. Nf3 {[%clk
0:02:42.9]} 8... Qxe4 {[%clk 0:02:40.5]} 9. Qd3 {[%clk 0:02:34.8]} 9... Bb4+
{[%clk 0:02:38.9]} 10. Nbd2 {[%clk 0:02:20.4]} 10... Qxd3 {[%clk 0:02:34]} 11.
cxd3 {[%clk 0:02:19.7]} 11... O-O {[%clk 0:02:32.5]} 12. O-O {[%clk 0:02:15.3]}
12... Re8 {[%clk 0:02:32]} 13. e4 {[%clk 0:02:12]} 13... d6 {[%clk 0:02:30.3]}
14. Nc4 {[%clk 0:02:07.1]} 14... Bg4 {[%clk 0:02:28.6]} 15. Nh4 {[%clk
0:01:48.7]} 15... Be2 {[%clk 0:02:27]} 16. Rfc1 {[%clk 0:01:44.3]} 16... Bd2
{[%clk 0:02:25.9]} 17. Rc2 {[%clk 0:01:40.8]} 17... Bxd3 {[%clk 0:02:22.4]} 18.
Rxd2 {[%clk 0:01:38.5]} 18... Bxc4 {[%clk 0:02:22.1]} 19. bxc4 {[%clk
0:01:37.8]} 19... d5 {[%clk 0:02:22]} 20. cxd5 {[%clk 0:01:36]} 20... cxd5
{[%clk 0:02:21.8]} 21. Rxd5 {[%clk 0:01:35.3]} 21... Rab8 {[%clk 0:02:22.1]} 22.
Bxe5 {[%clk 0:01:22.8]} 22... f6 {[%clk 0:02:21.2]} 23. Bc3 {[%clk 0:01:20.2]}
23... Rb6 {[%clk 0:02:18.8]} 24. f3 {[%clk 0:01:17.6]} 24... Reb8 {[%clk
0:02:18.4]} 25. Nf5 {[%clk 0:01:14.7]} 25... g6 {[%clk 0:02:17.3]} 26. Ne3
{[%clk 0:01:03.9]} 26... c6 {[%clk 0:02:13.2]} 27. Rd7 {[%clk 0:01:00.4]} 27...
R6b7 {[%clk 0:02:08.9]} 28. Rxb7 {[%clk 0:00:58.8]} 28... Rxb7 {[%clk
0:02:08.9]} 29. Kf2 {[%clk 0:00:57.7]} 29... Rd7 {[%clk 0:02:08.8]} 30. Ke2
{[%clk 0:00:57]} 30... f5 {[%clk 0:02:07.8]} 31. Rd1 {[%clk 0:00:54.9]} 31...
Re7 {[%clk 0:02:07]} 32. exf5 {[%clk 0:00:50.7]} 32... gxf5 {[%clk 0:02:05.8]}
33. Kf2 {[%clk 0:00:50.3]} 33... f4 {[%clk 0:02:05.7]} 34. Ng4 {[%clk
0:00:48.3]} 34... h5 {[%clk 0:02:04.5]} 35. Nf6+ {[%clk 0:00:46.4]} 35... Kf7
{[%clk 0:01:58.3]} 36. Nxh5 {[%clk 0:00:46]} 36... c5 {[%clk 0:01:56.3]} 37.
Nxf4 {[%clk 0:00:45.8]} 37... Rb7 {[%clk 0:01:50.2]} 38. Rd2 {[%clk 0:00:43.1]}
38... Rc7 {[%clk 0:01:46.1]} 39. h4 {[%clk 0:00:42.4]} 39... c4 {[%clk
0:01:45.6]} 40. h5 {[%clk 0:00:41.9]} 40... Kg8 {[%clk 0:01:45.5]} 41. h6 {[%clk
0:00:40.7]} 41... Rh7 {[%clk 0:01:40.6]} 42. Bg7 {[%clk 0:00:40.2]} 42... Kf7
{[%clk 0:01:37.9]} 43. Rd7+ {[%clk 0:00:39.1]} 43... Kg8 {[%clk 0:01:36.9]} 44.
Nd5 {[%clk 0:00:34.8]} 44... a5 {[%clk 0:01:31.8]} 45. Nf6# {[%clk 0:00:34.8]}
1-0

[Event "Betsys MČR v online bleskovém šachu 2021"]
[Site "Chess.com"]
[Date "2021.04.17"]
[Round "11"]
[White "lockerbieQ"]
[Black "adiklan"]
[Result "1-0"]
[WhiteElo "1748"]
[BlackElo "1891"]
[TimeControl "180+1"]
[EndTime "10:48:32 PDT"]
[Termination "Uživatel lockerbieQ zvítězil po vzdání soupeře"]

1. e4 {[%clk 0:03:00.9]} 1... c5 {[%clk 0:02:59.8]} 2. Nf3 {[%clk 0:03:00.6]}
2... e6 {[%clk 0:03:00]} 3. d4 {[%clk 0:03:00.8]} 3... cxd4 {[%clk 0:02:59.8]}
4. Nxd4 {[%clk 0:03:01.1]} 4... a6 {[%clk 0:02:59.7]} 5. Nc3 {[%clk 0:03:00.9]}
5... Qc7 {[%clk 0:02:58.6]} 6. Be3 {[%clk 0:03:00.2]} 6... Bb4 {[%clk
0:02:58.8]} 7. Qd2 {[%clk 0:01:56.2]} 7... Nf6 {[%clk 0:02:54.3]} 8. Bd3 {[%clk
0:01:55.9]} 8... Nc6 {[%clk 0:02:54.4]} 9. Nxc6 {[%clk 0:01:54.9]} 9... bxc6
{[%clk 0:02:53.4]} 10. O-O {[%clk 0:01:55]} 10... O-O {[%clk 0:02:32.7]} 11. a3
{[%clk 0:01:55]} 11... Bxc3 {[%clk 0:02:31.6]} 12. Qxc3 {[%clk 0:01:54.8]} 12...
d5 {[%clk 0:02:10.4]} 13. e5 {[%clk 0:01:52.3]} 13... Nd7 {[%clk 0:02:09.9]} 14.
f4 {[%clk 0:01:50.7]} 14... c5 {[%clk 0:02:05.1]} 15. b4 {[%clk 0:01:34.2]}
15... c4 {[%clk 0:02:02.8]} 16. Be2 {[%clk 0:01:31.6]} 16... a5 {[%clk
0:02:02.6]} 17. Bd4 {[%clk 0:01:23.3]} 17... g6 {[%clk 0:01:56.1]} 18. h4 {[%clk
0:01:20.9]} 18... Bb7 {[%clk 0:01:28]} 19. h5 {[%clk 0:01:18.7]} 19... axb4
{[%clk 0:01:27.8]} 20. axb4 {[%clk 0:01:18.5]} 20... Rxa1 {[%clk 0:01:25.1]} 21.
Rxa1 {[%clk 0:01:18.3]} 21... Ra8 {[%clk 0:01:25.6]} 22. hxg6 {[%clk 0:01:16.5]}
22... hxg6 {[%clk 0:01:24.4]} 23. b5 {[%clk 0:01:03.2]} 23... Rxa1+ {[%clk
0:01:20.5]} 24. Qxa1 {[%clk 0:01:03.2]} 24... Nc5 {[%clk 0:01:21.1]} 25. Qa3
{[%clk 0:00:56.1]} 25... Ne4 {[%clk 0:01:18.7]} 26. Bf3 {[%clk 0:00:53.7]} 26...
Qd7 {[%clk 0:01:09.3]} 27. Bxe4 {[%clk 0:00:49.2]} 27... dxe4 {[%clk 0:01:10.2]}
28. Qd6 {[%clk 0:00:49.2]} 28... Qxb5 {[%clk 0:01:09]} 29. Qd8+ {[%clk
0:00:40.9]} 29... Kg7 {[%clk 0:01:01.2]} 30. Qf6+ {[%clk 0:00:40.5]} 30... Kf8
{[%clk 0:00:59.9]} 31. Qd8+ {[%clk 0:00:39]} 31... Qe8 {[%clk 0:00:58.3]} 32.
Bc5+ {[%clk 0:00:36.1]} 1-0